[Event "Late-Titled-Tuesday-Blitz-January-30-2024"]
[Site "Chess.com"]
[Date "2024.01.30"]
[Round "7"]
[White "Sebastian"]
[Black "lachesisQ"]
[Result "0-1"]
[WhiteElo "2951"]
[BlackElo "3113"]
[TimeControl "180+1"]
[EndTime "15:18:26 PST"]
[Termination "lachesisQ won by resignation"]

1. e4 {[%clk 0:03:00.9]} 1... e5 {[%clk 0:03:00.4]} 2. Nf3 {[%clk 0:03:01]} 2...
Nc6 {[%clk 0:03:01.3]} 3. Bb5 {[%clk 0:03:01]} 3... a6 {[%clk 0:03:01]} 4. Ba4
{[%clk 0:03:01.5]} 4... Nf6 {[%clk 0:03:01.4]} 5. O-O {[%clk 0:03:02]} 5... Bc5
{[%clk 0:03:01.7]} 6. c3 {[%clk 0:03:00.8]} 6... Ba7 {[%clk 0:03:02.1]} 7. d4
{[%clk 0:02:59.6]} 7... b5 {[%clk 0:03:02.2]} 8. Bc2 {[%clk 0:02:57.8]} 8... d6
{[%clk 0:03:01.7]} 9. h3 {[%clk 0:02:51.4]} 9... O-O {[%clk 0:03:00.3]} 10. Re1
{[%clk 0:02:47]} 10... h6 {[%clk 0:02:59.8]} 11. Be3 {[%clk 0:02:46.6]} 11...
Bb7 {[%clk 0:02:57.5]} 12. Nbd2 {[%clk 0:02:32.3]} 12... Re8 {[%clk 0:02:56.2]}
13. a3 {[%clk 0:02:30.7]} 13... exd4 {[%clk 0:02:49.2]} 14. cxd4 {[%clk
0:02:30.4]} 14... Ne7 {[%clk 0:02:49.6]} 15. Rc1 {[%clk 0:02:17.5]} 15... Ng6
{[%clk 0:02:49.5]} 16. d5 {[%clk 0:02:17.7]} 16... Bxe3 {[%clk 0:02:46.9]} 17.
Rxe3 {[%clk 0:02:18.6]} 17... c5 {[%clk 0:02:44.8]} 18. dxc6 {[%clk 0:02:18.4]}
18... Bxc6 {[%clk 0:02:44.9]} 19. Nd4 {[%clk 0:02:17.7]} 19... Bb7 {[%clk
0:02:43.6]} 20. Qe1 {[%clk 0:01:29.9]} 20... Rc8 {[%clk 0:02:37.5]} 21. Bb1
{[%clk 0:01:10]} 21... Rxc1 {[%clk 0:02:35.2]} 22. Qxc1 {[%clk 0:01:10.9]} 22...
d5 {[%clk 0:02:35.8]} 23. e5 {[%clk 0:00:46.8]} 23... Nxe5 {[%clk 0:02:31.2]}
24. b3 {[%clk 0:00:46.6]} 24... Qb6 {[%clk 0:02:18.9]} 25. Qb2 {[%clk
0:00:46.2]} 25... Ned7 {[%clk 0:02:13.9]} 26. Rxe8+ {[%clk 0:00:44.6]} 26...
Nxe8 {[%clk 0:02:14.8]} 27. N2f3 {[%clk 0:00:41.3]} 27... Nd6 {[%clk 0:02:08.2]}
28. Qd2 {[%clk 0:00:38.7]} 28... Ne4 {[%clk 0:02:05]} 29. Qf4 {[%clk 0:00:38.5]}
29... Qd6 {[%clk 0:02:04.3]} 30. Qxd6 {[%clk 0:00:35.9]} 30... Nxd6 {[%clk
0:02:05.2]} 31. Kf1 {[%clk 0:00:32.8]} 31... Ne4 {[%clk 0:01:59.1]} 32. Ke1
{[%clk 0:00:32.5]} 32... f6 {[%clk 0:01:56.9]} 33. Nd2 {[%clk 0:00:31.6]} 33...
Nd6 {[%clk 0:01:50.6]} 34. Ke2 {[%clk 0:00:28]} 34... Kf7 {[%clk 0:01:50.4]} 35.
h4 {[%clk 0:00:27.2]} 35... g5 {[%clk 0:01:47.7]} 36. hxg5 {[%clk 0:00:27.5]}
36... hxg5 {[%clk 0:01:47.5]} 37. g3 {[%clk 0:00:27.6]} 37... Nc5 {[%clk
0:01:46.1]} 38. f4 {[%clk 0:00:26.9]} 38... Nce4 {[%clk 0:01:36.8]} 39. Bxe4
{[%clk 0:00:23.4]} 39... dxe4 {[%clk 0:01:37.6]} 40. Ke3 {[%clk 0:00:21.9]}
40... Kg6 {[%clk 0:01:24.3]} 41. Nb1 {[%clk 0:00:21.4]} 41... Kh5 {[%clk
0:01:21.9]} 42. Nc3 {[%clk 0:00:19.6]} 42... Kg4 {[%clk 0:01:22.1]} 43. Nce2
{[%clk 0:00:16.5]} 43... Bd5 {[%clk 0:01:21]} 44. Kf2 {[%clk 0:00:15.5]} 44...
Bf7 {[%clk 0:01:12.4]} 45. Ke3 {[%clk 0:00:15.5]} 45... a5 {[%clk 0:01:10.5]}
46. Kf2 {[%clk 0:00:15]} 46... a4 {[%clk 0:01:10.4]} 47. bxa4 {[%clk 0:00:15.2]}
47... bxa4 {[%clk 0:01:11.3]} 48. fxg5 {[%clk 0:00:14.4]} 48... fxg5 {[%clk
0:01:11]} 49. Nc2 {[%clk 0:00:13.8]} 49... Nf5 {[%clk 0:01:01.7]} 50. Ne3+
{[%clk 0:00:08.6]} 50... Nxe3 {[%clk 0:01:01]} 51. Kxe3 {[%clk 0:00:09.5]} 51...
Bc4 {[%clk 0:00:53.3]} 52. Nc3 {[%clk 0:00:08.9]} 52... Bd3 {[%clk 0:00:53.8]}
53. Nxa4 {[%clk 0:00:08.3]} 53... Kxg3 {[%clk 0:00:54.2]} 54. Nc5 {[%clk
0:00:09]} 54... g4 {[%clk 0:00:50.4]} 55. a4 {[%clk 0:00:08]} 55... Kh2 {[%clk
0:00:48.4]} 56. Ne6 {[%clk 0:00:07.5]} 56... Ba6 {[%clk 0:00:22.3]} 57. a5
{[%clk 0:00:06.4]} 57... g3 {[%clk 0:00:18.1]} 58. Nf4 {[%clk 0:00:05.6]} 58...
Bb7 {[%clk 0:00:18.6]} 59. Ne2 {[%clk 0:00:03.7]} 59... Ba8 {[%clk 0:00:16.8]}
60. Kd2 {[%clk 0:00:01.4]} 60... g2 {[%clk 0:00:16.5]} 61. Ke3 {[%clk
0:00:01.5]} 61... g1=Q+ {[%clk 0:00:16.8]} 62. Nxg1 {[%clk 0:00:02.3]} 62...
Kxg1 {[%clk 0:00:17.7]} 63. a6 {[%clk 0:00:02.2]} 63... Kg2 {[%clk 0:00:18.1]}
64. a7 {[%clk 0:00:02.2]} 64... Kg3 {[%clk 0:00:18.2]} 0-1

[Event "Late-Titled-Tuesday-Blitz-January-30-2024"]
[Site "Chess.com"]
[Date "2024.01.30"]
[Round "7"]
[White "Baby_Legs"]
[Black "ChessBrainiacOnTwitch"]
[Result "1-0"]
[WhiteElo "2619"]
[BlackElo "2778"]
[TimeControl "180+1"]
[EndTime "15:18:27 PST"]
[Termination "Baby_Legs won by resignation"]

1. d4 {[%clk 0:03:00.9]} 1... Nf6 {[%clk 0:02:59]} 2. Nf3 {[%clk 0:02:59.3]}
2... g6 {[%clk 0:02:58.1]} 3. Nbd2 {[%clk 0:02:56.7]} 3... Bg7 {[%clk
0:02:54.5]} 4. e4 {[%clk 0:02:56.6]} 4... d6 {[%clk 0:02:54.9]} 5. Bb5+ {[%clk
0:02:56.1]} 5... c6 {[%clk 0:02:55.1]} 6. Bd3 {[%clk 0:02:56.1]} 6... O-O {[%clk
0:02:54.7]} 7. O-O {[%clk 0:02:55.6]} 7... Nbd7 {[%clk 0:02:50.1]} 8. Re1 {[%clk
0:02:54.7]} 8... e5 {[%clk 0:02:45.9]} 9. c3 {[%clk 0:02:54.2]} 9... Re8 {[%clk
0:02:45.6]} 10. Nf1 {[%clk 0:02:52.1]} 10... Qc7 {[%clk 0:02:40.7]} 11. h3
{[%clk 0:02:51.9]} 11... b5 {[%clk 0:02:30.5]} 12. a4 {[%clk 0:02:41.9]} 12...
Bb7 {[%clk 0:02:21.9]} 13. axb5 {[%clk 0:02:33.2]} 13... cxb5 {[%clk 0:02:22.8]}
14. d5 {[%clk 0:02:33.1]} 14... a6 {[%clk 0:02:21.8]} 15. Bd2 {[%clk 0:02:24.4]}
15... Nc5 {[%clk 0:02:05.7]} 16. Bc2 {[%clk 0:02:24.4]} 16... a5 {[%clk
0:02:05.9]} 17. Ng3 {[%clk 0:02:18.7]} 17... Nfd7 {[%clk 0:02:00.2]} 18. h4
{[%clk 0:02:14.3]} 18... h5 {[%clk 0:01:56.9]} 19. Ng5 {[%clk 0:02:07.5]} 19...
Nf6 {[%clk 0:01:55.8]} 20. Qf3 {[%clk 0:01:55.7]} 20... Bc8 {[%clk 0:01:50.3]}
21. Qe3 {[%clk 0:01:50.6]} 21... Bd7 {[%clk 0:01:44.9]} 22. Bd1 {[%clk
0:01:47.8]} 22... Rab8 {[%clk 0:01:39.4]} 23. b4 {[%clk 0:01:44.5]} 23... axb4
{[%clk 0:01:39.2]} 24. cxb4 {[%clk 0:01:45.4]} 24... Na4 {[%clk 0:01:36.3]} 25.
Be2 {[%clk 0:01:41.7]} 25... Rec8 {[%clk 0:01:25.8]} 26. Rec1 {[%clk 0:01:39.9]}
26... Qb7 {[%clk 0:01:26.1]} 27. Qb3 {[%clk 0:01:29.8]} 27... Nb6 {[%clk
0:01:19.4]} 28. Be3 {[%clk 0:01:28.1]} 28... Ng4 {[%clk 0:01:17.1]} 29. Bxg4
{[%clk 0:01:27.3]} 29... Bxg4 {[%clk 0:01:15.8]} 30. Rc6 {[%clk 0:01:14.7]}
30... Na4 {[%clk 0:00:53.1]} 31. Rac1 {[%clk 0:01:06.6]} 31... Bd7 {[%clk
0:00:46.9]} 32. Rxd6 {[%clk 0:00:58.8]} 32... Rxc1+ {[%clk 0:00:44.8]} 33. Bxc1
{[%clk 0:00:59.7]} 33... Qc7 {[%clk 0:00:42]} 34. Rxd7 {[%clk 0:00:52.5]} 34...
Qxd7 {[%clk 0:00:42.9]} 35. Be3 {[%clk 0:00:44.8]} 35... Rc8 {[%clk 0:00:43.1]}
36. d6 {[%clk 0:00:39.2]} 36... Rc4 {[%clk 0:00:40.7]} 37. Qd3 {[%clk
0:00:38.5]} 37... Bf8 {[%clk 0:00:38.5]} 38. Qd5 {[%clk 0:00:37.5]} 38... Bxd6
{[%clk 0:00:33.8]} 39. Nxf7 {[%clk 0:00:36.6]} 39... Qxf7 {[%clk 0:00:33]} 40.
Qxd6 {[%clk 0:00:36.9]} 40... Nc3 {[%clk 0:00:30.7]} 41. Qxe5 {[%clk 0:00:33.8]}
41... Qg7 {[%clk 0:00:08.4]} 42. Qb8+ {[%clk 0:00:23.9]} 42... Kh7 {[%clk
0:00:08.6]} 43. Bf4 {[%clk 0:00:17.4]} 43... Nxe4 {[%clk 0:00:02.1]} 44. Be5
{[%clk 0:00:17.8]} 44... Nf6 {[%clk 0:00:02.2]} 45. Qxb5 {[%clk 0:00:16.4]}
45... Rc1+ {[%clk 0:00:02.1]} 46. Nf1 {[%clk 0:00:16.7]} 46... Qf7 {[%clk
0:00:02.6]} 47. Qb8 {[%clk 0:00:10.8]} 47... Rc6 {[%clk 0:00:01.7]} 48. b5
{[%clk 0:00:10.3]} 48... Re6 {[%clk 0:00:02.3]} 49. Bd4 {[%clk 0:00:08.9]} 49...
Re4 {[%clk 0:00:02.1]} 50. Bc3 {[%clk 0:00:07.6]} 50... Re8 {[%clk 0:00:02.6]}
51. Qf4 {[%clk 0:00:07]} 51... Re6 {[%clk 0:00:03]} 52. Ne3 {[%clk 0:00:07]}
52... Qe7 {[%clk 0:00:03.3]} 53. Qd4 {[%clk 0:00:05.7]} 53... Rd6 {[%clk
0:00:03]} 54. Qb4 {[%clk 0:00:04.1]} 54... Qd7 {[%clk 0:00:03.6]} 55. b6 {[%clk
0:00:04.1]} 55... Ne4 {[%clk 0:00:03.7]} 56. Qxe4 {[%clk 0:00:03.9]} 56... Rxb6
{[%clk 0:00:04.4]} 57. Qe5 {[%clk 0:00:04]} 57... Rb8 {[%clk 0:00:04.6]} 58.
Qxb8 {[%clk 0:00:03.6]} 1-0

[Event "Late-Titled-Tuesday-Blitz-January-30-2024"]
[Site "Chess.com"]
[Date "2024.01.30"]
[Round "7"]
[White "Nick12772"]
[Black "RantomOpening"]
[Result "1-0"]
[WhiteElo "2389"]
[BlackElo "2526"]
[TimeControl "180+1"]
[EndTime "15:18:27 PST"]
[Termination "Nick12772 won by resignation"]

1. Nf3 {[%clk 0:03:00.9]} 1... d5 {[%clk 0:02:53.4]} 2. g3 {[%clk 0:03:01.2]}
2... e6 {[%clk 0:02:53.7]} 3. Bg2 {[%clk 0:03:01.4]} 3... Nf6 {[%clk 0:02:50.8]}
4. O-O {[%clk 0:03:01.8]} 4... c5 {[%clk 0:02:50.6]} 5. d4 {[%clk 0:03:01.9]}
5... cxd4 {[%clk 0:02:51.5]} 6. Nxd4 {[%clk 0:03:02.8]} 6... e5 {[%clk
0:02:49.3]} 7. Nf3 {[%clk 0:03:02.4]} 7... Nc6 {[%clk 0:02:49.2]} 8. c4 {[%clk
0:03:02.4]} 8... Be6 {[%clk 0:02:47.8]} 9. Nc3 {[%clk 0:03:00.4]} 9... d4 {[%clk
0:02:47.4]} 10. Nd5 {[%clk 0:02:57.3]} 10... Nxd5 {[%clk 0:02:46.6]} 11. cxd5
{[%clk 0:02:58.2]} 11... Bxd5 {[%clk 0:02:46.7]} 12. e3 {[%clk 0:02:51.8]} 12...
dxe3 {[%clk 0:02:44.8]} 13. Bxe3 {[%clk 0:02:51.7]} 13... f6 {[%clk 0:02:41.8]}
14. Qa4 {[%clk 0:02:40.7]} 14... Qc7 {[%clk 0:02:38.9]} 15. Rfd1 {[%clk
0:02:33.9]} 15... Be6 {[%clk 0:02:38.7]} 16. Rac1 {[%clk 0:02:27.1]} 16... Rc8
{[%clk 0:02:32.6]} 17. Bxa7 {[%clk 0:02:15.5]} 17... Be7 {[%clk 0:02:29.4]} 18.
Bc5 {[%clk 0:02:06.7]} 18... O-O {[%clk 0:02:27.3]} 19. Bxe7 {[%clk 0:01:58]}
19... Qxe7 {[%clk 0:02:28.2]} 20. a3 {[%clk 0:01:42.9]} 20... Rfd8 {[%clk
0:02:19]} 21. Qb5 {[%clk 0:01:39.2]} 21... Bg4 {[%clk 0:02:09.5]} 22. Rxd8+
{[%clk 0:01:34]} 22... Rxd8 {[%clk 0:02:10.4]} 23. h3 {[%clk 0:01:21.3]} 23...
Bxf3 {[%clk 0:02:08.9]} 24. Bxf3 {[%clk 0:01:22.2]} 24... Nd4 {[%clk 0:02:07.4]}
25. Qc4+ {[%clk 0:01:13.1]} 25... Kh8 {[%clk 0:01:52.9]} 26. Bg2 {[%clk
0:01:10.8]} 26... b5 {[%clk 0:01:40.2]} 27. Qc7 {[%clk 0:01:04]} 27... Ne2+
{[%clk 0:01:35.6]} 28. Kh2 {[%clk 0:00:50.3]} 28... Qf8 {[%clk 0:01:28.4]} 29.
Rc2 {[%clk 0:00:42.7]} 29... Nd4 {[%clk 0:01:28.6]} 30. Rc1 {[%clk 0:00:32.9]}
30... h6 {[%clk 0:01:21.5]} 31. Qc5 {[%clk 0:00:29.4]} 31... Qe8 {[%clk
0:01:19.1]} 32. Qc7 {[%clk 0:00:26.5]} 32... Qf8 {[%clk 0:01:15.3]} 33. Qc5
{[%clk 0:00:26.1]} 33... Qe8 {[%clk 0:01:15.3]} 34. Qc7 {[%clk 0:00:26.3]} 34...
f5 {[%clk 0:00:51.9]} 35. Re1 {[%clk 0:00:22.9]} 35... e4 {[%clk 0:00:51.9]} 36.
Qc5 {[%clk 0:00:20.8]} 36... Qf8 {[%clk 0:00:31.6]} 37. Qxf8+ {[%clk 0:00:18.9]}
37... Rxf8 {[%clk 0:00:32.5]} 38. Rd1 {[%clk 0:00:18.6]} 38... Rd8 {[%clk
0:00:33.2]} 39. g4 {[%clk 0:00:11.4]} 39... Rd6 {[%clk 0:00:29.4]} 40. gxf5
{[%clk 0:00:10.6]} 40... Nxf5 {[%clk 0:00:30.3]} 41. Rxd6 {[%clk 0:00:10.3]}
41... Nxd6 {[%clk 0:00:31.2]} 42. Kg3 {[%clk 0:00:10]} 42... g5 {[%clk
0:00:31.5]} 43. h4 {[%clk 0:00:07.2]} 43... Nf5+ {[%clk 0:00:29.8]} 44. Kg4
{[%clk 0:00:06.5]} 44... Nxh4 {[%clk 0:00:30.3]} 45. Bxe4 {[%clk 0:00:07]} 45...
Kg7 {[%clk 0:00:31.2]} 46. Bc6 {[%clk 0:00:06.5]} 46... Ng6 {[%clk 0:00:31.5]}
47. Bxb5 {[%clk 0:00:06.5]} 47... Nf4 {[%clk 0:00:31.8]} 48. a4 {[%clk
0:00:06.3]} 48... Kg6 {[%clk 0:00:31.5]} 49. a5 {[%clk 0:00:05.9]} 49... h5+
{[%clk 0:00:32.4]} 50. Kf3 {[%clk 0:00:05.4]} 50... h4 {[%clk 0:00:33.3]} 51. a6
{[%clk 0:00:05.3]} 51... Nd5 {[%clk 0:00:32]} 52. a7 {[%clk 0:00:04.4]} 52...
Nc7 {[%clk 0:00:29.6]} 53. Bc6 {[%clk 0:00:04.4]} 53... Kf5 {[%clk 0:00:29.9]}
54. a8=Q {[%clk 0:00:04.4]} 54... g4+ {[%clk 0:00:30.6]} 55. Kg2 {[%clk
0:00:04.5]} 55... Nxa8 {[%clk 0:00:30.9]} 56. Bxa8 {[%clk 0:00:05.4]} 56... Kf4
{[%clk 0:00:31.8]} 57. Bc6 {[%clk 0:00:04.7]} 57... Ke5 {[%clk 0:00:31.8]} 58.
b4 {[%clk 0:00:05.1]} 58... Kd6 {[%clk 0:00:32.3]} 59. b5 {[%clk 0:00:05.8]}
59... Kc5 {[%clk 0:00:33.1]} 60. Kf1 {[%clk 0:00:06.2]} 60... Kb6 {[%clk
0:00:34]} 61. Ke2 {[%clk 0:00:06.8]} 61... g3 {[%clk 0:00:34.3]} 62. fxg3 {[%clk
0:00:06.7]} 62... hxg3 {[%clk 0:00:35.2]} 63. Kf3 {[%clk 0:00:07.1]} 63... Kc5
{[%clk 0:00:36.1]} 64. Kxg3 {[%clk 0:00:07.6]} 64... Kb6 {[%clk 0:00:37]} 65.
Kf4 {[%clk 0:00:08.3]} 65... Kc7 {[%clk 0:00:37.9]} 66. Ke5 {[%clk 0:00:09.2]}
66... Kb6 {[%clk 0:00:38.8]} 67. Kd5 {[%clk 0:00:09.9]} 67... Kc7 {[%clk
0:00:39.4]} 68. Kc5 {[%clk 0:00:10.8]} 68... Kb8 {[%clk 0:00:40.2]} 69. Kb6
{[%clk 0:00:11]} 69... Kc8 {[%clk 0:00:40.5]} 70. Bd5 {[%clk 0:00:10.3]} 70...
Kb8 {[%clk 0:00:41.4]} 71. Bb3 {[%clk 0:00:10.9]} 71... Ka8 {[%clk 0:00:42.3]}
72. Kc7 {[%clk 0:00:10.9]} 72... Ka7 {[%clk 0:00:42.7]} 73. b6+ {[%clk
0:00:11.6]} 73... Ka6 {[%clk 0:00:42.6]} 74. b7 {[%clk 0:00:11.7]} 74... Ka5
{[%clk 0:00:41.8]} 75. b8=Q {[%clk 0:00:10.3]} 1-0

[Event "Late-Titled-Tuesday-Blitz-January-30-2024"]
[Site "Chess.com"]
[Date "2024.01.30"]
[Round "7"]
[White "GMWSO"]
[Black "VladimirKramnik"]
[Result "1-0"]
[WhiteElo "3098"]
[BlackElo "2933"]
[TimeControl "180+1"]
[EndTime "15:18:28 PST"]
[Termination "GMWSO won on time"]

1. d4 {[%clk 0:03:00.9]} 1... e6 {[%clk 0:02:59.2]} 2. e4 {[%clk 0:03:00.5]}
2... d5 {[%clk 0:02:58.3]} 3. e5 {[%clk 0:03:00.7]} 3... c5 {[%clk 0:02:57.5]}
4. c3 {[%clk 0:03:01.6]} 4... Nc6 {[%clk 0:02:56.9]} 5. Nf3 {[%clk 0:03:01.8]}
5... Qb6 {[%clk 0:02:55.5]} 6. a3 {[%clk 0:02:59.2]} 6... c4 {[%clk 0:02:53.2]}
7. Nbd2 {[%clk 0:02:58.5]} 7... Na5 {[%clk 0:02:52.4]} 8. h4 {[%clk 0:02:53.7]}
8... Bd7 {[%clk 0:02:52.2]} 9. h5 {[%clk 0:02:53.5]} 9... O-O-O {[%clk
0:02:47.5]} 10. Rb1 {[%clk 0:02:41.1]} 10... Kb8 {[%clk 0:02:42.6]} 11. g3
{[%clk 0:02:35.4]} 11... Nh6 {[%clk 0:02:34.1]} 12. Bh3 {[%clk 0:02:32]} 12...
Be7 {[%clk 0:02:32.1]} 13. O-O {[%clk 0:02:31.6]} 13... g5 {[%clk 0:02:20.7]}
14. Nh2 {[%clk 0:02:26.3]} 14... Rhg8 {[%clk 0:01:50.1]} 15. Ng4 {[%clk
0:02:21.9]} 15... Nxg4 {[%clk 0:01:50]} 16. Bxg4 {[%clk 0:02:22.8]} 16... h6
{[%clk 0:01:50.2]} 17. Re1 {[%clk 0:02:14]} 17... Rdf8 {[%clk 0:01:48.7]} 18.
Nf3 {[%clk 0:01:52.4]} 18... Qb3 {[%clk 0:01:34.7]} 19. Qxb3 {[%clk 0:01:37.8]}
19... Nxb3 {[%clk 0:01:34]} 20. Be3 {[%clk 0:01:31.4]} 20... Ba4 {[%clk
0:01:33.1]} 21. Nh2 {[%clk 0:01:29.4]} 21... Na5 {[%clk 0:01:28.2]} 22. Rbc1
{[%clk 0:01:23.9]} 22... Nb3 {[%clk 0:01:27.5]} 23. Rcd1 {[%clk 0:01:20.5]}
23... b5 {[%clk 0:01:25.5]} 24. Bh3 {[%clk 0:01:18]} 24... a5 {[%clk 0:01:21]}
25. Ng4 {[%clk 0:01:18.1]} 25... b4 {[%clk 0:01:16.6]} 26. axb4 {[%clk
0:01:13.9]} 26... axb4 {[%clk 0:01:16.5]} 27. Kh2 {[%clk 0:00:57.7]} 27... Kc7
{[%clk 0:01:09.7]} 28. f4 {[%clk 0:00:56.5]} 28... gxf4 {[%clk 0:00:46.4]} 29.
Bxf4 {[%clk 0:00:57.4]} 29... Bg5 {[%clk 0:00:46.3]} 30. Rf1 {[%clk 0:00:56]}
30... bxc3 {[%clk 0:00:41.4]} 31. bxc3 {[%clk 0:00:55.8]} 31... Bxf4 {[%clk
0:00:39.2]} 32. Rxf4 {[%clk 0:00:54.2]} 32... Rg5 {[%clk 0:00:28.6]} 33. Nf6
{[%clk 0:00:48.2]} 33... Ra8 {[%clk 0:00:26.9]} 34. g4 {[%clk 0:00:44.7]} 34...
Nc5 {[%clk 0:00:25.2]} 35. Ra1 {[%clk 0:00:38.1]} 35... Nd3 {[%clk 0:00:24.9]}
36. Rff1 {[%clk 0:00:34.9]} 36... Nxe5 {[%clk 0:00:13.5]} 37. dxe5 {[%clk
0:00:32.7]} 37... Rxe5 {[%clk 0:00:14.2]} 38. Ra3 {[%clk 0:00:22.1]} 38... Bc6
{[%clk 0:00:10.9]} 39. Rxa8 {[%clk 0:00:21.5]} 39... Bxa8 {[%clk 0:00:11.5]} 40.
Ng8 {[%clk 0:00:22]} 40... Re2+ {[%clk 0:00:07.3]} 41. Kg3 {[%clk 0:00:21]}
41... d4 {[%clk 0:00:06.8]} 42. cxd4 {[%clk 0:00:20.4]} 42... c3 {[%clk
0:00:04.8]} 43. Nxh6 {[%clk 0:00:20.7]} 43... c2 {[%clk 0:00:04.1]} 44. Nxf7
{[%clk 0:00:20.6]} 44... Be4 {[%clk 0:00:04.1]} 45. Ne5 {[%clk 0:00:17.1]} 45...
Rd2 {[%clk 0:00:03.1]} 46. Rc1 {[%clk 0:00:14.1]} 46... Rd1 {[%clk 0:00:03.2]}
47. Rxc2+ {[%clk 0:00:14]} 47... Bxc2 {[%clk 0:00:03.8]} 48. g5 {[%clk
0:00:14.1]} 48... Kd6 {[%clk 0:00:03.9]} 49. g6 {[%clk 0:00:13.8]} 49... Ke7
{[%clk 0:00:02.8]} 50. h6 {[%clk 0:00:08.8]} 50... Rxd4 {[%clk 0:00:02.6]} 51.
h7 {[%clk 0:00:03.9]} 51... Rd8 {[%clk 0:00:02.6]} 52. Nc6+ {[%clk 0:00:04.2]}
52... Kf6 {[%clk 0:00:01.9]} 53. Nxd8 {[%clk 0:00:05.1]} 53... Kg7 {[%clk
0:00:02]} 54. Nf7 {[%clk 0:00:04.8]} 1-0

[Event "Late-Titled-Tuesday-Blitz-January-30-2024"]
[Site "Chess.com"]
[Date "2024.01.30"]
[Round "7"]
[White "Durarbayli"]
[Black "Kildepiotr"]
[Result "0-1"]
[WhiteElo "2889"]
[BlackElo "2712"]
[TimeControl "180+1"]
[EndTime "15:18:29 PST"]
[Termination "Kildepiotr won on time"]

1. e4 {[%clk 0:03:00.9]} 1... e6 {[%clk 0:02:56.4]} 2. d4 {[%clk 0:03:00.4]}
2... d5 {[%clk 0:02:56.5]} 3. Nc3 {[%clk 0:02:59.5]} 3... Bb4 {[%clk 0:02:53.2]}
4. e5 {[%clk 0:02:59.5]} 4... b6 {[%clk 0:02:47.1]} 5. h4 {[%clk 0:02:57.6]}
5... h5 {[%clk 0:02:39.9]} 6. Bg5 {[%clk 0:02:40.2]} 6... Qd7 {[%clk 0:02:34.9]}
7. Rh3 {[%clk 0:02:37]} 7... Ne7 {[%clk 0:02:26.7]} 8. a3 {[%clk 0:02:30.7]}
8... Bxc3+ {[%clk 0:02:25.5]} 9. Rxc3 {[%clk 0:02:31.6]} 9... Ba6 {[%clk
0:02:23.5]} 10. Nh3 {[%clk 0:02:22]} 10... Bxf1 {[%clk 0:02:21.6]} 11. Kxf1
{[%clk 0:02:22.9]} 11... Ng6 {[%clk 0:02:16.1]} 12. Qe2 {[%clk 0:02:11.8]} 12...
Nc6 {[%clk 0:02:10.7]} 13. Rd1 {[%clk 0:02:11.8]} 13... Nce7 {[%clk 0:02:08]}
14. Qa6 {[%clk 0:02:08.3]} 14... c6 {[%clk 0:02:04.6]} 15. Kg1 {[%clk
0:01:55.5]} 15... Nf5 {[%clk 0:02:02.7]} 16. g3 {[%clk 0:01:55.2]} 16... Rc8
{[%clk 0:01:52.8]} 17. Rf3 {[%clk 0:01:39.5]} 17... c5 {[%clk 0:01:45.4]} 18. c3
{[%clk 0:01:39.8]} 18... c4 {[%clk 0:01:45.3]} 19. a4 {[%clk 0:01:26.5]} 19...
O-O {[%clk 0:01:38.9]} 20. Qb5 {[%clk 0:01:14.3]} 20... Qb7 {[%clk 0:01:38.5]}
21. Qb4 {[%clk 0:01:04]} 21... f6 {[%clk 0:01:28.4]} 22. Bf4 {[%clk 0:00:58.6]}
22... fxe5 {[%clk 0:01:21]} 23. Bxe5 {[%clk 0:00:53.6]} 23... Nxe5 {[%clk
0:01:20.3]} 24. dxe5 {[%clk 0:00:54.5]} 24... d4 {[%clk 0:01:20.3]} 25. Rf4
{[%clk 0:00:40.2]} 25... d3 {[%clk 0:01:00.4]} 26. Ng5 {[%clk 0:00:32.3]} 26...
Qd5 {[%clk 0:00:56.9]} 27. Re4 {[%clk 0:00:23.9]} 27... Rc5 {[%clk 0:00:41.6]}
28. b3 {[%clk 0:00:23.3]} 28... Rfc8 {[%clk 0:00:36.9]} 29. bxc4 {[%clk
0:00:17.6]} 29... Rxc4 {[%clk 0:00:37.1]} 30. Rxc4 {[%clk 0:00:18.5]} 30... Rxc4
{[%clk 0:00:35.9]} 31. Qb5 {[%clk 0:00:19.4]} 31... Qxb5 {[%clk 0:00:32.7]} 32.
axb5 {[%clk 0:00:20.3]} 32... Rxc3 {[%clk 0:00:33]} 33. Nxe6 {[%clk 0:00:20.4]}
33... Kf7 {[%clk 0:00:19.1]} 34. Nf4 {[%clk 0:00:19.1]} 34... Nd4 {[%clk
0:00:19.2]} 35. Kg2 {[%clk 0:00:16.2]} 35... Nxb5 {[%clk 0:00:18.5]} 36. Nxd3
{[%clk 0:00:16.4]} 36... Ke6 {[%clk 0:00:16.4]} 37. Nf4+ {[%clk 0:00:16.4]}
37... Kxe5 {[%clk 0:00:16.7]} 38. Nxh5 {[%clk 0:00:17.1]} 38... Nd4 {[%clk
0:00:13.6]} 39. Nxg7 {[%clk 0:00:16.6]} 39... a5 {[%clk 0:00:13.6]} 40. h5
{[%clk 0:00:16.4]} 40... Rc7 {[%clk 0:00:11.7]} 41. h6 {[%clk 0:00:16.3]} 41...
Rc8 {[%clk 0:00:12.3]} 42. f4+ {[%clk 0:00:14.6]} 42... Ke4 {[%clk 0:00:12.1]}
43. Re1+ {[%clk 0:00:15.2]} 43... Kd5 {[%clk 0:00:12.1]} 44. Ne8 {[%clk
0:00:15.5]} 44... Rc2+ {[%clk 0:00:09.9]} 45. Kh3 {[%clk 0:00:12.9]} 45... Nf3
{[%clk 0:00:10.3]} 46. h7 {[%clk 0:00:11.5]} 46... Rh2+ {[%clk 0:00:10]} 47. Kg4
{[%clk 0:00:12]} 47... Nxe1 {[%clk 0:00:10.7]} 48. f5 {[%clk 0:00:12.2]} 48...
Ke5 {[%clk 0:00:08.6]} 49. Kg5 {[%clk 0:00:09.1]} 49... Rxh7 {[%clk 0:00:08.4]}
50. Kg6 {[%clk 0:00:09]} 50... Rh8 {[%clk 0:00:08.8]} 51. Ng7 {[%clk 0:00:07.3]}
51... Nf3 {[%clk 0:00:08.9]} 52. f6 {[%clk 0:00:07.2]} 52... Nd4 {[%clk
0:00:07.8]} 53. g4 {[%clk 0:00:06.8]} 53... Ne6 {[%clk 0:00:08.1]} 54. g5 {[%clk
0:00:06.2]} 54... Nxg5 {[%clk 0:00:06.7]} 55. Kxg5 {[%clk 0:00:06.3]} 55... Rf8
{[%clk 0:00:06.7]} 56. Nh5 {[%clk 0:00:04.9]} 56... a4 {[%clk 0:00:07.4]} 57.
Kg6 {[%clk 0:00:05.5]} 57... a3 {[%clk 0:00:07.7]} 58. Kg7 {[%clk 0:00:06.4]}
58... Rxf6 {[%clk 0:00:07.7]} 59. Nxf6 {[%clk 0:00:07.3]} 59... a2 {[%clk
0:00:08.4]} 0-1